[Event "Czech Youth U12 Boys 2024"]
[Site "Kouty nad Desnou"]
[Date "2024.03.11"]
[Round "4.3"]
[White "Kolar, Edvard"]
[Black "Frantsev, Iegor"]
[Result "1-0"]
[ECO "B15"]
[WhiteElo "1759"]
[BlackElo "1721"]
[Annotator "NA RC"]
[PlyCount "91"]
[EventDate "2024.03.10"]
[EventType "swiss"]
[EventCountry "CZE"]
[SourceTitle "playchess.com"]
[Source "ChessBase"]
[SourceQuality "1"]
[TimeControl "40/5400+30:1800+30"]

1. e4 {[%emt 0:00:01]} c6 {[%emt 0:00:14]} 2. d4 {[%emt 0:00:10]} d5 {[%emt 0:00:43]} 3. Nc3 {[%emt 0:00:16]} dxe4 {[%emt 0:00:43]} 4. Nxe4 {[%emt 0:00:12]} Nf6 {[%emt 0:00:17]} 5. Ng3 {[%emt 0:04:14]} Bg4 {[%emt 0:01:24]} 6. N1e2 {[%emt 0:03:47]} Bxe2 {[%emt 0:01:27]} 7. Bxe2 {[%emt 0:00:40]} e6 {[%emt 0:01:17]} 8. Bg5 {[%emt 0:15:53]} Nbd7 {[%emt 0:01:46]} 9. Qd2 {[%emt 0:02:47]} Qc7 {[%emt 0:01:39]} 10. O-O {[%emt 0:06:16]} Be7 {[%emt 0:01:47]} 11. Bf3 {[%emt 0:08:06]} O-O {[%emt 0:00:48]} 12. Nh5 {[%emt 0:19:29]} Rfe8 {[%emt 0:12:12]} 13. Rae1 {[%emt 0:16:13]} Nxh5 {[%emt 0:08:49]} 14. Bxh5 {[%emt 0:00:52]} Bxg5 {[%emt 0:01:24]} 15. Qxg5 {[%emt 0:00:28]} Nf6 {[%emt 0:00:29]} 16. c3 {[%emt 0:05:28]} Nxh5 {[%emt 0:07:30]} 17. Qxh5 {[%emt 0:00:09]} Rad8 {[%emt 0:01:11]} 18. Re3 {[%emt 0:03:52]} Rd5 {[%emt 0:01:11]} 19. Qh4 {[%emt 0:00:52]} Qe7 {[%emt 0:01:08]} 20. Qe4 {[%emt 0:01:37]} h6 {[%emt 0:02:53]} 21. f4 {[%emt 0:01:02]} Rd7 {[%emt 0:08:22]} 22. Qf3 {[%emt 0:02:26]} Qf6 {[%emt 0:02:34]} 23. Qe2 {[%emt 0:01:46]} Rde7 {[%emt 0:02:36]} 24. Re5 {[%emt 0:00:03]} g6 {[%emt 0:13:19]} 25. Kh1 {[%emt 0:00:30]} Kh7 {[%emt 0:04:17]} 26. g4 {[%emt 0:00:51]} Qg7 {[%emt 0:06:52]} 27. f5 {[%emt 0:00:29]} gxf5 {[%emt 0:00:41]} 28. gxf5 {[%emt 0:00:10]} Qg8 {[%emt 0:04:22]} 29. f6 {[%emt 0:00:19]} Rd7 {[%emt 0:00:13]} 30. Rg1 {[%emt 0:00:21]} Qf8 {[%emt 0:00:45]} 31. Rg7+ {[%emt 0:00:38]} Qxg7 {[%emt 0:00:53]} 32. fxg7 {[%emt 0:00:06]} Kxg7 {[%emt 0:00:07]} 33. Qg4+ {[%emt 0:00:38]} Kh7 {[%emt 0:00:30]} 34. Qf4 {[%emt 0:01:42]} Rg8 {[%emt 0:00:21]} 35. h4 {[%emt 0:01:44]} b6 {[%emt 0:00:39]} 36. h5 {[%emt 0:00:54]} c5 {[%emt 0:00:41]} 37. Qf2 {[%emt 0:01:26]} cxd4 {[%emt 0:00:24]} 38. cxd4 {[%emt 0:00:35]} Rc7 {[%emt 0:00:08]} 39. d5 {[%emt 0:00:53]} exd5 {[%emt 0:01:46]} 40. Rxd5 {[%emt 0:00:44]} Rc1+ {[%emt 0:00:30]} 41. Kh2 {[%emt 0:30:17]} Rgc8 {[%emt 0:31:20]} 42. Qxf7+ {[%emt 0:00:45]} Kh8 {[%emt 0:00:15]} 43. Qf6+ {[%emt 0:00:12]} Kg8 {[%emt 0:00:20]} 44. Qg6+ {[%emt 0:00:13]} Kf8 {[%emt 0:00:11]} 45. Rf5+ {[%emt 0:00:05]} Ke7 {[%emt 0:00:10]} 46. Rf7+ {[%emt 0:00:08]} 1-0

[Event "Czech Youth U12 Boys 2024"]
[Site "Kouty nad Desnou"]
[Date "2024.03.11"]
[Round "4.4"]
[White "Kala, Jakub"]
[Black "Kroulik, Stepan"]
[Result "1/2-1/2"]
[ECO "A06"]
[WhiteElo "1750"]
[BlackElo "1683"]
[Annotator "NA RC"]
[PlyCount "61"]
[EventDate "2024.03.10"]
[EventType "swiss"]
[EventCountry "CZE"]
[SourceTitle "playchess.com"]
[Source "ChessBase"]
[SourceQuality "1"]
[TimeControl "40/5400+30:1800+30"]

1. Nf3 {[%emt 0:00:04]} d5 {[%emt 0:00:22]} 2. c4 {[%emt 0:00:09]} Nf6 {[%emt 0:00:41]} 3. e3 {[%emt 0:00:14]} Bg4 {[%emt 0:00:30]} 4. Be2 {[%emt 0:00:18]} e6 {[%emt 0:00:22]} 5. Nc3 {[%emt 0:00:25]} Be7 {[%emt 0:00:45]} 6. b3 {[%emt 0:00:32]} O-O {[%emt 0:00:35]} 7. Bb2 {[%emt 0:00:16]} c5 {[%emt 0:00:37]} 8. cxd5 {[%emt 0:00:42]} exd5 {[%emt 0:00:23]} 9. d4 {[%emt 0:00:56]} Nc6 {[%emt 0:00:56]} 10. Rc1 {[%emt 0:01:43]} b6 {[%emt 0:01:18]} 11. h3 {[%emt 0:02:02]} Bh5 {[%emt 0:00:39]} 12. O-O {[%emt 0:00:21]} Rc8 {[%emt 0:00:56]} 13. a3 {[%emt 0:02:41]} Re8 {[%emt 0:01:58]} 14. Qd2 {[%emt 0:03:42]} Ne4 {[%emt 0:06:32]} 15. Qd1 {[%emt 0:12:52]} Nxc3 {[%emt 0:10:03]} 16. Rxc3 {[%emt 0:03:29]} Bf6 {[%emt 0:01:31]} 17. Rc2 {[%emt 0:03:28]} Bxf3 {[%emt 0:12:49]} 18. Bxf3 {[%emt 0:00:43]} cxd4 19. Bxd4 {[%emt 0:07:03]} Nxd4 {[%emt 0:03:12]} 20. exd4 {[%emt 0:00:35]} Rxc2 {[%emt 0:00:45]} 21. Qxc2 {[%emt 0:00:16]} Bxd4 {[%emt 0:00:51]} 22. Rd1 {[%emt 0:01:27]} Qf6 {[%emt 0:04:54]} 23. Bxd5 {[%emt 0:01:56]} Rd8 {[%emt 0:00:38]} 24. Bf3 {[%emt 0:01:38]} Bc5 {[%emt 0:04:30]} 25. Rxd8+ {[%emt 0:03:42]} Qxd8 {[%emt 0:00:09]} 26. b4 {[%emt 0:01:38]} Bf8 {[%emt 0:00:57]} 27. g3 {[%emt 0:02:22]} g6 {[%emt 0:00:38]} 28. Kg2 {[%emt 0:01:04]} a5 {[%emt 0:02:19]} 29. bxa5 {[%emt 0:01:36]} bxa5 {[%emt 0:00:52]} 30. a4 {[%emt 0:00:53]} Qd4 {[%emt 0:00:41]} 31. Qe4 1/2-1/2

[Event "Czech Youth U12 Boys 2024"]
[Site "Kouty nad Desnou"]
[Date "2024.03.11"]
[Round "4.5"]
[White "Krisica, Lukas"]
[Black "Artamonov, Mikhail"]
[Result "0-1"]
[ECO "E61"]
[WhiteElo "1531"]
[BlackElo "1727"]
[Annotator "NA RC"]
[PlyCount "44"]
[EventDate "2024.03.10"]
[EventType "swiss"]
[EventCountry "CZE"]
[SourceTitle "playchess.com"]
[Source "ChessBase"]
[SourceQuality "1"]
[TimeControl "40/5400+30:1800+30"]

1. Nf3 {[%emt 0:00:34]} Nf6 {[%emt 0:00:10]} 2. d4 {[%emt 0:01:39]} g6 {[%emt 0:00:27]} 3. c4 {[%emt 0:01:58]} d6 {[%emt 0:00:20]} 4. Nc3 {[%emt 0:00:50]} Bg7 {[%emt 0:00:56]} 5. Bg5 {[%emt 0:01:41]} O-O {[%emt 0:00:36]} 6. e3 {[%emt 0:01:31]} Nbd7 {[%emt 0:02:49]} 7. Bd3 {[%emt 0:01:34]} c5 {[%emt 0:02:34]} 8. O-O {[%emt 0:01:49]} h6 {[%emt 0:09:11]} 9. Bh4 {[%emt 0:03:41]} g5 {[%emt 0:02:11]} 10. Bg3 {[%emt 0:00:22]} Nh5 {[%emt 0:01:07]} 11. Re1 {[%emt 0:01:10]} Nxg3 {[%emt 0:00:07]} 12. hxg3 {[%emt 0:00:12]} a6 {[%emt 0:09:17]} 13. Rc1 {[%emt 0:01:47]} Rb8 {[%emt 0:03:13]} 14. Qc2 {[%emt 0:02:12]} Nf6 {[%emt 0:02:27]} 15. d5 {[%emt 0:03:16]} Qc7 {[%emt 0:01:43]} 16. e4 {[%emt 0:03:25]} Ng4 {[%emt 0:02:39]} 17. a3 {[%emt 0:12:11]} b5 {[%emt 0:03:48]} 18. cxb5 {[%emt 0:01:25]} c4 {[%emt 0:00:07]} 19. Be2 {[%emt 0:00:33]} axb5 {[%emt 0:00:09]} 20. b3 {[%emt 0:01:38]} Qa7 {[%emt 0:03:32]} 21. bxc4 {[%emt 0:04:00]} Qxf2+ {[%emt 0:01:20]} 22. Kh1 {[%emt 0:02:21]} Ne3 {[%emt 0:00:13]} 0-1

[Event "Czech Youth U12 Boys 2024"]
[Site "Kouty nad Desnou"]
[Date "2024.03.11"]
[Round "4.6"]
[White "Zrust, Lukas"]
[Black "Bara, Jan"]
[Result "1-0"]
[ECO "B20"]
[WhiteElo "1893"]
[BlackElo "1852"]
[Annotator "NA RC"]
[PlyCount "144"]
[EventDate "2024.03.10"]
[EventType "swiss"]
[EventCountry "CZE"]
[SourceTitle "playchess.com"]
[Source "ChessBase"]
[SourceQuality "1"]
[TimeControl "40/5400+30:1800+30"]

1. e4 {[%emt 0:00:02]} c5 {[%emt 0:02:51]} 2. d3 {[%emt 0:00:35]} g6 {[%emt 0:01:31]} 3. Be3 {[%emt 0:01:09]} d6 {[%emt 0:01:17]} 4. g3 {[%emt 0:00:20]} Bg7 {[%emt 0:02:07]} 5. c3 {[%emt 0:00:26]} Nc6 {[%emt 0:00:48]} 6. Bg2 {[%emt 0:00:09] B20: Sicilian: Unusual White 2nd moves.} Nf6 {[%emt 0:01:54]} 7. h3 {[%emt 0:03:41]} O-O {[%emt 0:00:42]} 8. Ne2 {[%emt 0:05:39]} Rb8 {[%emt 0:04:12]} 9. O-O {[%emt 0:01:16]} b5 {[%emt 0:00:59]} 10. f4 {[%emt 0:01:06]} e5 {[%emt 0:09:15]} 11. fxe5 {[%emt 0:02:09]} (11. f5 $142) 11... Nxe5 {[%emt 0:03:06]} 12. Na3 {[%emt 0:15:22]} b4 {[%emt 0:16:31]} 13. Nc2 {[%emt 0:07:17]} bxc3 {[%emt 0:03:27]} 14. bxc3 {[%emt 0:00:31]} Ba6 {[%emt 0:00:24]} 15. c4 $1 {[%emt 0:04:42]} Rb2 {[%emt 0:02:30]} 16. Bc1 {[%emt 0:03:27]} Rb7 {[%emt 0:03:20]} 17. Ne3 {[%emt 0:08:33]} Qd7 {[%emt 0:11:30]} 18. Nf4 {[%emt 0:02:39]} Nc6 {[%emt 0:03:18]} 19. Bd2 {[%emt 0:03:29]} Ne8 {[%emt 0:06:15]} 20. Rb1 {[%emt 0:01:17]} Rxb1 {[%emt 0:00:16]} 21. Qxb1 {[%emt 0:00:10]} Nc7 {[%emt 0:00:37]} 22. Nfd5 {[%emt 0:04:46]} Nxd5 {[%emt 0:01:06]} 23. Nxd5 {[%emt 0:00:12]} Qb7 {[%emt 0:01:48]} 24. Qxb7 {[%emt 0:00:45]} Bxb7 {[%emt 0:00:01]} 25. Rb1 {[%emt 0:01:20]} (25. Nf6+ $16 Kh8 26. e5) 25... Bc8 {[%emt 0:01:41]} 26. Bf4 {[%emt 0:03:49]} Rd8 {[%emt 0:03:55]} 27. Bg5 {[%emt 0:03:08]} Rf8 {[%emt 0:02:29]} (27... Re8) (27... Bd4+ $14 28. Kh2 Rd7) 28. Ne7+ {[%emt 0:00:46]} Nxe7 {[%emt 0:00:22]} 29. Bxe7 {[%emt 0:00:07]} Re8 {[%emt 0:00:01]} 30. Bxd6 {[%emt 0:00:13]} Bd4+ {[%emt 0:00:06] [#]} 31. Kh2 $1 {[%emt 0:01:30]} Re6 {[%emt 0:00:33]} 32. Bf4 {[%emt 0:01:13]} Kg7 {[%emt 0:02:07]} 33. Rb8 {[%emt 0:01:42]} Ba6 {[%emt 0:01:15]} (33... Bd7 $142) 34. Ra8 {[%emt 0:00:43]} Rb6 {[%emt 0:01:19]} 35. Rxa7 {[%emt 0:01:17]} Rb1 {[%emt 0:00:44]} 36. g4 {[%emt 0:02:16]} Bg1+ {[%emt 0:00:59]} 37. Kg3 {[%emt 0:00:17]} Bc8 {[%emt 0:02:28]} 38. Be5+ {[%emt 0:01:53]} Kh6 {[%emt 0:00:47]} 39. Rxf7 {[%emt 0:00:42]} g5 {[%emt 0:01:23]} 40. Rf6+ {[%emt 0:00:32]} Kg7 {[%emt 0:00:02]} 41. Rf1+ {[%emt 0:30:14]} Kg6 {[%emt 0:30:01]} 42. Rxb1 {[%emt 0:00:29]} Bd4 {[%emt 0:00:01]} 43. Rb6+ {[%emt 0:00:21]} Kf7 {[%emt 0:00:00]} 44. Bxd4 {[%emt 0:00:29]} cxd4 {[%emt 0:00:00]} 45. a4 {[%emt 0:00:35]} Ke7 46. Rh6 Kd7 47. Rxh7+ Kc6 {[%emt 0:00:00]} 48. e5+ {[%emt 0:01:28]} Kb6 49. c5+ {[%emt 0:00:17]} Kxc5 {[%emt 0:00:03]} 50. Rc7+ {[%emt 0:00:17]} Kb4 {[%emt 0:00:01]} 51. Rxc8 {[%emt 0:00:11]} Ka3 52. a5 Kb4 {[%emt 0:00:53]} 53. a6 {[%emt 0:02:12]} Kb3 {[%emt 0:00:00]} 54. a7 {[%emt 0:00:09]} Kb4 {[%emt 0:00:01]} 55. Rc4+ {[%emt 0:00:09]} Kb3 {[%emt 0:00:01]} 56. Rxd4 {[%emt 0:00:30]} Kc3 {[%emt 0:00:00]} 57. Rd7 {[%emt 0:00:16]} Kd2 {[%emt 0:00:01]} 58. e6 {[%emt 0:00:29]} Kd1 {[%emt 0:00:01]} 59. e7 {[%emt 0:00:15]} Kd2 {[%emt 0:00:00]} 60. d4 {[%emt 0:00:12]} Kd3 {[%emt 0:00:01]} 61. d5 {[%emt 0:00:06]} Kd2 {[%emt 0:00:01]} 62. d6 {[%emt 0:00:04]} Kd1 {[%emt 0:00:01]} 63. Rc7 {[%emt 0:00:24]} Kd2 {[%emt 0:00:00]} 64. d7 {[%emt 0:00:12]} Kd3 {[%emt 0:00:01]} 65. Rc5 {[%emt 0:00:36]} Kd2 {[%emt 0:00:00]} 66. Rxg5 {[%emt 0:00:13]} Kd3 {[%emt 0:00:01]} 67. h4 {[%emt 0:00:16]} Kd2 {[%emt 0:00:00]} 68. h5 {[%emt 0:00:21]} Kd1 {[%emt 0:00:01]} 69. h6 {[%emt 0:00:04]} Kd2 {[%emt 0:00:00]} 70. h7 {[%emt 0:00:10]} Kd1 {[%emt 0:00:01]} 71. Bf3+ {[%emt 0:00:13]} Ke1 {[%emt 0:00:00]} 72. Rc5 {[%emt 0:00:22]} Kd2 {[%emt 0:00:02]} 1-0

[Event "Czech Youth U12 Boys 2024"]
[Site "Kouty nad Desnou"]
[Date "2024.03.11"]
[Round "4.7"]
[White "Sochor, Antonin"]
[Black "Sochor, Vaclav"]
[Result "0-1"]
[ECO "A40"]
[WhiteElo "1779"]
[BlackElo "1826"]
[Annotator "NA RC"]
[PlyCount "56"]
[EventDate "2024.03.10"]
[EventType "swiss"]
[EventCountry "CZE"]
[SourceTitle "playchess.com"]
[Source "ChessBase"]
[SourceQuality "1"]
[TimeControl "40/5400+30:1800+30"]

1. d4 {[%emt 0:00:14]} g6 {[%emt 0:00:28]} 2. Nf3 {[%emt 0:00:24]} Bg7 {[%emt 0:00:30]} 3. e4 {[%emt 0:00:14]} d6 {[%emt 0:00:38]} 4. c4 {[%emt 0:02:20]} a6 {[%emt 0:01:32]} 5. Nc3 {[%emt 0:00:23]} Nd7 {[%emt 0:02:22]} 6. Be3 {[%emt 0:00:55]} b6 {[%emt 0:01:18]} 7. Bd3 {[%emt 0:00:37]} Bb7 {[%emt 0:01:19]} 8. Qd2 {[%emt 0:00:47]} e6 {[%emt 0:02:19]} 9. O-O-O {[%emt 0:00:55]} Ndf6 {[%emt 0:09:38]} 10. h3 {[%emt 0:03:28]} Qe7 {[%emt 0:06:43]} 11. Rhe1 {[%emt 0:00:50]} O-O-O {[%emt 0:01:24]} 12. Qc2 {[%emt 0:06:15]} c5 {[%emt 0:06:37]} 13. Qb3 {[%emt 0:04:38]} Qc7 {[%emt 0:00:58]} 14. Na4 {[%emt 0:04:57]} Nd7 {[%emt 0:00:50]} 15. Ng5 {[%emt 0:02:53]} cxd4 {[%emt 0:07:55]} 16. Nxf7 {[%emt 0:16:08]} dxe3 {[%emt 0:00:11]} 17. Bf1 {[%emt 0:01:47]} exf2 {[%emt 0:03:10]} 18. Re2 {[%emt 0:00:17] [#]} Ngf6 $19 {[%emt 0:08:17]} 19. Nxd6+ {[%emt 0:04:25]} Kb8 {[%emt 0:00:06]} 20. e5 {[%emt 0:01:17]} Nxe5 {[%emt 0:11:49]} 21. c5 {[%emt 0:10:15]} Nfd7 {[%emt 0:05:03]} 22. Rc2 {[%emt 0:05:30]} b5 {[%emt 0:10:17]} 23. Bxb5 {[%emt 0:19:53]} axb5 {[%emt 0:00:19]} 24. Nxb5 {[%emt 0:01:00]} Qc6 {[%emt 0:02:31]} 25. Nd4 {[%emt 0:03:24]} Qd5 {[%emt 0:05:56]} 26. Qb4 {[%emt 0:07:35]} Nd3+ {[%emt 0:00:52]} 27. Kb1 {[%emt 0:01:33]} Nxb4 {[%emt 0:00:06]} 28. c6 {[%emt 0:00:40]} Nxc6 {[%emt 0:00:10]} 0-1

[Event "Czech Youth U12 Boys 2024"]
[Site "Kouty nad Desnou"]
[Date "2024.03.11"]
[Round "4.8"]
[White "Fadrny, Jachym"]
[Black "Sotek, Matej"]
[Result "0-1"]
[ECO "B01"]
[WhiteElo "1729"]
[BlackElo "1716"]
[Annotator "NA RC"]
[PlyCount "106"]
[EventDate "2024.03.10"]
[EventType "swiss"]
[EventCountry "CZE"]
[SourceTitle "playchess.com"]
[Source "ChessBase"]
[SourceQuality "1"]
[TimeControl "40/5400+30:1800+30"]

1. e4 {[%emt 0:00:12]} d5 {[%emt 0:00:02]} 2. exd5 {[%emt 0:00:11]} Nf6 {[%emt 0:00:04]} 3. Bb5+ {[%emt 0:00:10]} Bd7 {[%emt 0:00:11]} 4. Bc4 {[%emt 0:00:15]} c6 {[%emt 0:00:12]} 5. dxc6 {[%emt 0:01:11]} Bxc6 {[%emt 0:00:01]} 6. Nf3 {[%emt 0:00:27]} e6 {[%emt 0:00:35]} 7. d4 {[%emt 0:02:30]} Bd6 {[%emt 0:00:24]} 8. Bd3 {[%emt 0:03:33]} Nbd7 {[%emt 0:00:58]} 9. O-O {[%emt 0:00:46]} Qc7 {[%emt 0:00:45]} 10. Nbd2 {[%emt 0:00:51]} O-O {[%emt 0:02:19]} 11. b3 {[%emt 0:02:07]} e5 {[%emt 0:00:54]} 12. Re1 {[%emt 0:04:37]} exd4 {[%emt 0:02:04]} 13. Bb2 {[%emt 0:00:58]} Ne5 {[%emt 0:02:53]} 14. Nxe5 {[%emt 0:01:24]} Bxe5 15. h3 {[%emt 0:00:28]} Rad8 {[%emt 0:00:53]} 16. Nc4 {[%emt 0:01:34]} Bd6 {[%emt 0:01:36]} 17. Nxd6 {[%emt 0:02:05]} Qxd6 {[%emt 0:01:15]} 18. a4 {[%emt 0:01:31]} Qd5 {[%emt 0:01:09]} 19. f3 {[%emt 0:01:13]} Rfe8 {[%emt 0:01:10]} 20. Qd2 {[%emt 0:01:52]} Re6 {[%emt 0:06:51]} 21. Rxe6 {[%emt 0:01:32]} fxe6 {[%emt 0:00:13]} 22. Rd1 {[%emt 0:00:25]} b5 {[%emt 0:05:12]} 23. axb5 {[%emt 0:06:21]} Bxb5 {[%emt 0:00:40]} 24. Bxb5 {[%emt 0:00:09]} Qxb5 {[%emt 0:00:02]} 25. Qe1 {[%emt 0:01:05]} Qb6 {[%emt 0:01:13]} 26. Kh1 {[%emt 0:04:11]} Kf7 {[%emt 0:20:53]} 27. Qe2 {[%emt 0:03:14]} Nh5 {[%emt 0:01:39]} 28. Qe5 {[%emt 0:03:37]} Rd5 {[%emt 0:03:15]} 29. Qe1 {[%emt 0:02:20]} Qd6 {[%emt 0:01:11]} 30. Qf2 {[%emt 0:07:32]} Ng3+ {[%emt 0:01:26]} 31. Kg1 {[%emt 0:01:23]} Nf5 {[%emt 0:01:39]} 32. Rd3 {[%emt 0:05:12]} Qc5 {[%emt 0:02:13]} 33. Bc1 {[%emt 0:04:23]} Qa5 {[%emt 0:07:42]} 34. g4 {[%emt 0:01:59]} Qa1 {[%emt 0:01:47]} 35. Qf1 {[%emt 0:02:25]} Ne7 {[%emt 0:03:10]} 36. f4 {[%emt 0:06:14]} Qa5 {[%emt 0:02:09]} 37. Bb2 {[%emt 0:00:44]} Qc5 {[%emt 0:00:59]} 38. Qf2 {[%emt 0:03:21]} Nc6 {[%emt 0:01:04]} 39. Qd2 {[%emt 0:02:28]} e5 40. fxe5 {[%emt 0:02:12]} Nxe5 {[%emt 0:04:15]} 41. Qf2+ {[%emt 0:30:30]} Kg8 {[%emt 0:31:08]} 42. Rxd4 {[%emt 0:03:08]} Rxd4 {[%emt 0:02:12]} 43. Bxd4 {[%emt 0:03:54]} Qxd4 {[%emt 0:01:10]} 44. Qxd4 {[%emt 0:00:10]} Nf3+ {[%emt 0:00:05]} 45. Kf2 {[%emt 0:00:07]} Nxd4 {[%emt 0:00:03]} 46. Ke3 {[%emt 0:00:16]} Nxc2+ {[%emt 0:01:11]} 47. Kd3 {[%emt 0:00:08]} Nb4+ {[%emt 0:00:12]} 48. Kc4 {[%emt 0:00:08]} Na2 {[%emt 0:00:19]} 49. Kb5 {[%emt 0:00:51]} Nc1 {[%emt 0:00:25]} 50. b4 {[%emt 0:00:10]} Nd3 {[%emt 0:00:08]} 51. h4 {[%emt 0:00:12]} Kf7 {[%emt 0:00:06]} 52. Ka5 {[%emt 0:00:30]} Nxb4 {[%emt 0:00:12]} 53. Kxb4 {[%emt 0:00:07]} Ke6 {[%emt 0:00:11]} 0-1

[Event "Czech Youth U12 Boys 2024"]
[Site "Kouty nad Desnou"]
[Date "2024.03.11"]
[Round "4.9"]
[White "Sudrich, Radek"]
[Black "Novotny, Adam"]
[Result "1-0"]
[ECO "C45"]
[WhiteElo "1998"]
[BlackElo "2072"]
[Annotator "RC"]
[PlyCount "59"]
[EventDate "2024.03.10"]
[EventType "swiss"]
[EventCountry "CZE"]
[SourceTitle "playchess.com"]
[Source "ChessBase"]
[SourceQuality "1"]
[TimeControl "40/5400+30:1800+30"]

1. e4 {[%emt 0:00:36]} e5 {[%emt 0:00:29]} 2. Nf3 {[%emt 0:00:38]} Nc6 {[%emt 0:01:25]} 3. d4 {[%emt 0:01:22]} exd4 {[%emt 0:01:23]} 4. Nxd4 {[%emt 0:01:09]} Bc5 {[%emt 0:02:33]} 5. Nb3 {[%emt 0:01:33]} Bb6 {[%emt 0:02:07]} 6. Nc3 {[%emt 0:01:32]} Nf6 {[%emt 0:03:05]} 7. Qe2 {[%emt 0:01:23]} d6 {[%emt 0:06:10]} 8. f3 {[%emt 0:01:06]} O-O {[%emt 0:04:01]} 9. Be3 {[%emt 0:01:44]} Be6 {[%emt 0:05:42]} 10. O-O-O {[%emt 0:01:45]} a5 {[%emt 0:05:13]} 11. Bxb6 {[%emt 0:03:37]} cxb6 {[%emt 0:02:44]} 12. Nd4 {[%emt 0:00:22]} Nxd4 {[%emt 0:04:48]} 13. Rxd4 {[%emt 0:00:50]} Qe7 {[%emt 0:06:49]} 14. Qd2 {[%emt 0:02:36]} Rfd8 {[%emt 0:03:22]} 15. g4 {[%emt 0:03:41]} a4 {[%emt 0:09:52]} 16. a3 {[%emt 0:03:00]} Ne8 {[%emt 0:07:40]} 17. h4 {[%emt 0:02:32]} Qf6 {[%emt 0:05:15]} 18. Be2 {[%emt 0:00:44]} Qe7 {[%emt 0:03:56]} 19. g5 {[%emt 0:01:22]} g6 {[%emt 0:02:16]} 20. f4 {[%emt 0:02:55]} Bd7 {[%emt 0:03:57]} 21. Bf3 {[%emt 0:01:41]} Bc6 {[%emt 0:00:50]} 22. Qh2 {[%emt 0:00:37]} Ng7 {[%emt 0:01:11]} 23. h5 {[%emt 0:01:03]} Ne6 {[%emt 0:02:14]} 24. Rb4 {[%emt 0:01:22]} Nc5 {[%emt 0:03:20]} 25. hxg6 {[%emt 0:01:29]} fxg6 {[%emt 0:00:48]} 26. Bg2 {[%emt 0:01:19]} Rf8 {[%emt 0:03:06]} 27. Bf1 {[%emt 0:03:33]} Bd7 {[%emt 0:02:52]} 28. Nd5 {[%emt 0:00:28]} Qg7 {[%emt 0:01:45]} 29. Nf6+ {[%emt 0:00:08]} Kf7 {[%emt 0:00:37]} 30. Qxh7 {[%emt 0:00:45]} 1-0

[Event "Czech Youth U12 Boys 2024"]
[Site "Kouty nad Desnou"]
[Date "2024.03.11"]
[Round "4.10"]
[White "Havlik, David"]
[Black "Gresek, Oskar"]
[Result "1-0"]
[ECO "B01"]
[WhiteElo "1580"]
[BlackElo "1629"]
[Annotator "NA RC"]
[PlyCount "49"]
[EventDate "2024.03.10"]
[EventType "swiss"]
[EventCountry "CZE"]
[SourceTitle "playchess.com"]
[Source "ChessBase"]
[SourceQuality "1"]
[TimeControl "40/5400+30:1800+30"]

1. e4 {[%emt 0:00:03]} d5 {[%emt 0:00:06]} 2. exd5 {[%emt 0:00:04]} Nf6 {[%emt 0:00:06]} 3. d4 {[%emt 0:00:03]} Nxd5 {[%emt 0:00:07]} 4. c4 {[%emt 0:00:05]} Nf6 {[%emt 0:00:05]} 5. Nf3 {[%emt 0:00:15]} Bg4 {[%emt 0:00:56]} 6. Be2 {[%emt 0:00:14]} c6 {[%emt 0:01:02]} 7. Be3 {[%emt 0:01:59]} e6 {[%emt 0:01:08]} 8. Nc3 {[%emt 0:02:19]} Be7 {[%emt 0:01:30]} 9. h3 {[%emt 0:01:07]} Bf5 {[%emt 0:01:14]} 10. g4 {[%emt 0:02:09]} Bg6 {[%emt 0:00:38]} 11. Nh4 {[%emt 0:01:45]} Nxg4 {[%emt 0:09:24]} 12. hxg4 {[%emt 0:02:06]} Bxh4 {[%emt 0:00:45]} 13. Qb3 {[%emt 0:02:39]} b6 {[%emt 0:01:15]} 14. O-O-O {[%emt 0:04:01]} O-O {[%emt 0:18:15]} 15. Bd3 {[%emt 0:06:26]} Bf6 {[%emt 0:06:22]} 16. Bxg6 {[%emt 0:02:19]} fxg6 {[%emt 0:01:08]} 17. c5 {[%emt 0:04:04]} b5 {[%emt 0:02:38]} 18. Qxe6+ {[%emt 0:01:18]} Kh8 {[%emt 0:01:25]} 19. Ne4 {[%emt 0:06:59]} Qd5 {[%emt 0:03:04]} 20. Rxh7+ {[%emt 0:01:17]} Kxh7 {[%emt 0:00:32]} 21. Rh1+ {[%emt 0:00:12]} Qh5 {[%emt 0:00:55]} 22. gxh5 {[%emt 0:00:08]} g5 {[%emt 0:01:19]} 23. Bxg5 {[%emt 0:00:35]} Bxg5+ {[%emt 0:00:53]} 24. Nxg5+ {[%emt 0:00:06]} Kh8 {[%emt 0:00:09]} 25. h6 {[%emt 0:00:18]} 1-0

[Event "Czech Youth U12 Boys 2024"]
[Site "Kouty nad Desnou"]
[Date "2024.03.11"]
[Round "4.11"]
[White "Malek, Daniel"]
[Black "Zvolanek, Vojtech"]
[Result "1-0"]
[ECO "C54"]
[WhiteElo "2278"]
[BlackElo "1411"]
[Annotator "RC"]
[PlyCount "66"]
[EventDate "2024.03.10"]
[EventType "swiss"]
[EventCountry "CZE"]
[SourceTitle "playchess.com"]
[Source "ChessBase"]
[SourceQuality "1"]
[TimeControl "40/5400+30:1800+30"]

1. e4 {[%emt 0:00:12]} e5 {[%emt 0:00:10]} 2. Nf3 {[%emt 0:00:31]} Nc6 {[%emt 0:00:25]} 3. Bc4 {[%emt 0:00:28]} Bc5 {[%emt 0:00:11]} 4. c3 {[%emt 0:00:24]} Nf6 {[%emt 0:00:12]} 5. d4 {[%emt 0:00:38]} exd4 {[%emt 0:01:15]} 6. cxd4 {[%emt 0:00:08]} Bb4+ {[%emt 0:01:20]} 7. Bd2 {[%emt 0:00:28]} Bxd2+ {[%emt 0:00:47]} 8. Nbxd2 {[%emt 0:00:05]} d5 {[%emt 0:01:13]} 9. exd5 {[%emt 0:00:58]} Nxd5 {[%emt 0:00:17]} 10. O-O {[%emt 0:02:16]} O-O {[%emt 0:00:28]} 11. Qc2 {[%emt 0:09:48]} Bg4 {[%emt 0:03:42]} 12. Qe4 {[%emt 0:05:25]} Nf6 {[%emt 0:08:04]} 13. Qf4 {[%emt 0:05:46]} Qd7 {[%emt 0:06:09]} 14. h3 {[%emt 0:21:40]} Be6 {[%emt 0:04:34]} 15. Bxe6 {[%emt 0:03:29]} fxe6 {[%emt 0:03:20]} 16. Nb3 {[%emt 0:03:51]} b6 {[%emt 0:03:30]} 17. Rac1 {[%emt 0:03:11]} Nd5 {[%emt 0:04:41]} 18. Qe4 {[%emt 0:04:33]} Rae8 {[%emt 0:07:58]} 19. Ng5 {[%emt 0:04:18]} Rf5 {[%emt 0:08:29]} 20. Nxh7 {[%emt 0:03:18]} Rh5 {[%emt 0:08:39]} 21. Nf6+ {[%emt 0:01:33]} Nxf6 {[%emt 0:06:13]} 22. Qxc6 {[%emt 0:00:47]} Qxc6 {[%emt 0:08:11]} 23. Rxc6 {[%emt 0:00:38]} Nd5 {[%emt 0:01:48]} 24. Re1 {[%emt 0:05:29]} e5 {[%emt 0:04:06]} 25. f3 {[%emt 0:02:44]} Re7 {[%emt 0:03:09]} 26. a3 {[%emt 0:01:57]} a5 {[%emt 0:03:57]} 27. dxe5 {[%emt 0:02:34]} Rhxe5 {[%emt 0:00:56]} 28. Rxe5 {[%emt 0:00:12]} Rxe5 {[%emt 0:00:12]} 29. Nd4 {[%emt 0:01:33]} Re1+ {[%emt 0:03:16]} 30. Kf2 {[%emt 0:00:30]} Rb1 {[%emt 0:00:27]} 31. Rc2 {[%emt 0:00:33]} c5 {[%emt 0:01:13]} 32. Nf5 {[%emt 0:01:45]} Nf4 {[%emt 0:02:08]} 33. Ke3 Kf8 1-0